[Event "NJSK 2022 Meisjes C"]
[Site "Almelo, Netherlands"]
[Date "2022.05.02"]
[Round "2.1"]
[White "Westerhof, Fleur"]
[Black "Maris, Lauri"]
[Result "1-0"]
[TimeControl "90min/40moves + 30min + 30sec/move"]
[WhiteElo "1509"]
[BlackElo "1619"]

1. e4 {[%clk 01:30:56]} {[%emt 00:00:03]} e5 {[%clk 01:30:53]} {[%emt
00:00:08]} 2. Nf3 {[%clk 01:31:09]} {[%emt 00:00:17]} Nc6 {[%clk 01:31:11]}
{[%emt 00:00:11]} 3. d4 {[%clk 01:31:14]} {[%emt 00:00:24]} exd4 {[%clk
01:31:21]} {[%emt 00:00:21]} 4. Bc4 {[%clk 01:31:16]} {[%emt 00:00:28]} Bb4+
{[%clk 01:27:51]} {[%emt 00:04:00]} 5. c3 {[%clk 01:29:42]} {[%emt 00:02:04]}
dxc3 {[%clk 01:26:56]} {[%emt 00:01:25]} 6. O-O {[%clk 01:28:08]} {[%emt
00:02:04]} Nge7 {[%clk 01:22:49]} {[%emt 00:04:38]} 7. a3 {[%clk 01:22:23]}
{[%emt 00:06:14]} Bd6 {[%clk 01:18:46]} {[%emt 00:04:32]} 8. Nxc3 {[%clk
01:17:53]} {[%emt 00:05:01]} O-O {[%clk 01:17:16]} {[%emt 00:02:01]} 9. Bg5
{[%clk 00:56:31]} {[%emt 00:21:51]} Qe8 {[%clk 01:13:43]} {[%emt 00:04:02]} 10.
Nh4 {[%clk 00:41:56]} {[%emt 00:15:06]} Be5 {[%clk 01:10:49]} {[%emt 00:03:23]}
11. f4 {[%clk 00:32:25]} {[%emt 00:10:01]} Bxc3 {[%clk 01:10:36]} {[%emt
00:00:44]} 12. bxc3 {[%clk 00:32:41]} {[%emt 00:00:14]} d6 {[%clk 01:10:16]}
{[%emt 00:00:50]} 13. f5 {[%clk 00:28:16]} {[%emt 00:04:55]} h6 {[%clk
01:07:39]} {[%emt 00:03:07]} 14. Qh5 {[%clk 00:19:10]} {[%emt 00:09:36]} Ne5
{[%clk 01:04:53]} {[%emt 00:03:16]} 15. Bxh6 {[%clk 00:12:43]} {[%emt
00:06:56]} Nxc4 {[%clk 00:57:09]} {[%emt 00:08:14]} 16. Bxg7 {[%clk 00:11:26]}
{[%emt 00:01:47]} f6 {[%clk 00:53:52]} {[%emt 00:03:48]} 17. Qh8+ {[%clk
00:11:18]} {[%emt 00:00:37]} Kf7 {[%clk 00:54:11]} {[%emt 00:00:11]} 18. Bxf8
{[%clk 00:11:35]} {[%emt 00:00:13]} Qxf8 {[%clk 00:54:27]} {[%emt 00:00:15]} 19.
Qh5+ {[%clk 00:11:46]} {[%emt 00:00:19]} Kg8 {[%clk 00:52:51]} {[%emt
00:02:06]} 20. Rf3 {[%clk 00:11:00]} {[%emt 00:01:16]} Qf7 {[%clk 00:52:52]}
{[%emt 00:00:29]} 21. Qh6 {[%clk 00:10:44]} {[%emt 00:00:46]} Qf8 {[%clk
00:51:41]} {[%emt 00:01:40]} 22. Rg3+ {[%clk 00:10:07]} {[%emt 00:01:07]} Kf7
{[%clk 00:51:59]} {[%emt 00:00:12]} 23. Qh5+ {[%clk 00:10:29]} {[%emt
00:00:09]} Ng6 {[%clk 00:52:15]} {[%emt 00:00:15]} 24. fxg6+ {[%clk 00:10:09]}
{[%emt 00:00:49]} Ke7 {[%clk 00:52:01]} {[%emt 00:00:42]} 25. g7 {[%clk
00:09:27]} {[%emt 00:01:13]} Qg8 {[%clk 00:51:38]} {[%emt 00:00:53]} 26. Ng6+
{[%clk 00:08:39]} {[%emt 00:01:20]} Kd8 {[%clk 00:51:01]} {[%emt 00:01:05]} 27.
Qh8 {[%clk 00:08:25]} {[%emt 00:00:44]} Be6 {[%clk 00:51:19]} {[%emt 00:00:12]}
28. h4 {[%clk 00:07:07]} {[%emt 00:01:48]} Ke8 {[%clk 00:50:17]} {[%emt
00:01:32]} 29. h5 {[%clk 00:06:24]} {[%emt 00:01:13]} Kf7 {[%clk 00:50:29]}
{[%emt 00:00:17]} 30. h6 {[%clk 00:06:05]} {[%emt 00:00:50]} Rc8 {[%clk
00:49:56]} {[%emt 00:01:03]} 31. Qxg8+ {[%clk 00:06:11]} {[%emt 00:00:23]} Kxg8
{[%clk 00:50:14]} {[%emt 00:00:13]} 32. Ne7+ {[%clk 00:06:34]} {[%emt
00:00:07]} Kh7 {[%clk 00:50:25]} {[%emt 00:00:18]} 33. Nxc8 {[%clk 00:06:53]}
{[%emt 00:00:12]} Ne5 {[%clk 00:50:30]} {[%emt 00:00:24]} 34. Ne7 {[%clk
00:06:42]} {[%emt 00:00:42]} Kxh6 {[%clk 00:50:30]} {[%emt 00:00:30]} 35. g8=Q
{[%clk 00:06:58]} {[%emt 00:00:13]} Bxg8 {[%clk 00:50:53]} {[%emt 00:00:08]} 36.
Nxg8+ {[%emt 00:00:21]} 1-0

[Event "NJSK 2022 Meisjes C"]
[Site "Almelo, Netherlands"]
[Date "2022.05.02"]
[Round "2.2"]
[White "Fu, Janice"]
[Black "Damen, Josephine"]
[Result "0-1"]
[TimeControl "90min/40moves + 30min + 30sec/move"]
[WhiteElo "1344"]
[BlackElo "1600"]

1. e4 {[%clk 01:30:57]} {[%emt 00:00:02]} e5 {[%clk 01:30:56]} {[%emt
00:00:05]} 2. Nf3 {[%clk 01:31:19]} {[%emt 00:00:08]} Nc6 {[%clk 01:31:22]}
{[%emt 00:00:04]} 3. Bc4 {[%clk 01:31:40]} {[%emt 00:00:08]} Nf6 {[%clk
01:31:47]} {[%emt 00:00:05]} 4. d3 {[%clk 01:32:00]} {[%emt 00:00:10]} Bc5
{[%clk 01:32:09]} {[%emt 00:00:08]} 5. Nc3 {[%clk 01:32:10]} {[%emt 00:00:20]}
O-O {[%clk 01:32:29]} {[%emt 00:00:10]} 6. Bg5 {[%clk 01:32:19]} {[%emt
00:00:20]} h6 {[%clk 01:32:53]} {[%emt 00:00:07]} 7. Be3 {[%clk 01:31:45]}
{[%emt 00:01:04]} Bb6 {[%clk 01:32:56]} {[%emt 00:00:27]} 8. h3 {[%clk
01:31:26]} {[%emt 00:00:49]} d6 {[%clk 01:32:52]} {[%emt 00:00:35]} 9. O-O
{[%clk 01:31:16]} {[%emt 00:00:39]} Be6 {[%clk 01:32:57]} {[%emt 00:00:25]} 10.
Bb3 {[%clk 01:31:09]} {[%emt 00:00:37]} Qd7 {[%clk 01:31:07]} {[%emt 00:02:20]}
11. Bxb6 {[%clk 01:23:34]} {[%emt 00:08:06]} axb6 {[%clk 01:31:11]} {[%emt
00:00:26]} 12. Qe2 {[%clk 01:22:08]} {[%emt 00:01:54]} Rfe8 {[%clk 01:27:16]}
{[%emt 00:04:26]} 13. Ba4 {[%clk 01:16:37]} {[%emt 00:06:01]} Qc8 {[%clk
01:22:56]} {[%emt 00:04:50]} 14. Bxc6 {[%clk 01:13:08]} {[%emt 00:03:59]} bxc6
{[%clk 01:23:18]} {[%emt 00:00:09]} 15. d4 {[%clk 01:12:53]} {[%emt 00:00:44]}
exd4 {[%clk 01:08:42]} {[%emt 00:15:06]} 16. Nxd4 {[%clk 01:12:12]} {[%emt
00:01:11]} b5 {[%clk 00:53:37]} {[%emt 00:15:35]} 17. Qe3 {[%clk 00:56:57]}
{[%emt 00:15:44]} b4 {[%clk 00:51:39]} {[%emt 00:02:29]} 18. Nce2 {[%clk
00:54:57]} {[%emt 00:02:30]} Bc4 {[%clk 00:44:23]} {[%emt 00:07:45]} 19. f3
{[%clk 00:51:09]} {[%emt 00:04:18]} c5 {[%clk 00:43:01]} {[%emt 00:01:53]} 20.
Nb3 {[%clk 00:50:47]} {[%emt 00:00:51]} Qa6 {[%clk 00:27:32]} {[%emt 00:15:49]}
21. Rfe1 {[%clk 00:48:41]} {[%emt 00:02:46]} Nd5 {[%clk 00:24:21]} {[%emt
00:03:41]} 22. Qf2 {[%clk 00:45:41]} {[%emt 00:03:30]} Bxe2 {[%clk 00:20:21]}
{[%emt 00:04:31]} 23. Rxe2 {[%clk 00:43:13]} {[%emt 00:02:58]} Nf4 {[%clk
00:19:19]} {[%emt 00:01:32]} 24. Ree1 {[%clk 00:42:19]} {[%emt 00:01:24]} Re5
{[%clk 00:15:00]} {[%emt 00:04:49]} 25. Qd2 {[%clk 00:40:06]} {[%emt 00:02:43]}
g5 {[%clk 00:10:59]} {[%emt 00:04:31]} 26. g3 {[%clk 00:38:13]} {[%emt
00:02:23]} Ng6 {[%clk 00:09:22]} {[%emt 00:02:06]} 27. Kh2 {[%clk 00:32:10]}
{[%emt 00:06:33]} Rae8 {[%clk 00:08:17]} {[%emt 00:01:35]} 28. a3 {[%clk
00:31:08]} {[%emt 00:01:33]} Qb5 {[%clk 00:07:11]} {[%emt 00:01:35]} 29. a4
{[%clk 00:29:58]} {[%emt 00:01:41]} Qa6 {[%clk 00:07:21]} {[%emt 00:00:19]} 30.
Nc1 {[%clk 00:28:51]} {[%emt 00:01:38]} f5 {[%clk 00:05:55]} {[%emt 00:01:56]}
31. Nd3 {[%clk 00:28:58]} {[%emt 00:00:22]} R5e7 {[%clk 00:05:35]} {[%emt
00:00:49]} 32. exf5 {[%clk 00:28:27]} {[%emt 00:01:03]} Ne5 {[%clk 00:04:27]}
{[%emt 00:01:38]} 33. f6 {[%clk 00:27:24]} {[%emt 00:01:32]} Nxf3+ {[%clk
00:04:10]} {[%emt 00:00:47]} 34. Kg2 {[%clk 00:27:47]} {[%emt 00:00:08]} Nxd2
{[%clk 00:03:58]} {[%emt 00:00:42]} 35. Rxe7 {[%clk 00:26:33]} {[%emt
00:01:43]} Qc6+ {[%clk 00:03:42]} {[%emt 00:00:46]} 36. Kg1 {[%clk 00:26:07]}
{[%emt 00:00:57]} Rxe7 {[%clk 00:03:57]} {[%emt 00:00:15]} 37. fxe7 {[%clk
00:26:32]} {[%emt 00:00:05]} Kf7 {[%clk 00:04:10]} {[%emt 00:00:17]} 38. a5
{[%clk 00:25:44]} {[%emt 00:01:18]} Kxe7 {[%clk 00:04:00]} {[%emt 00:00:40]} 39.
a6 {[%clk 00:25:53]} {[%emt 00:00:21]} Nc4 {[%clk 00:03:12]} {[%emt 00:01:17]}
40. a7 {[%clk 00:25:57]} {[%emt 00:00:27]} Qa8 {[%clk 00:02:33]} {[%emt
00:01:07]} 41. h4 {[%clk 00:24:35]} {[%emt 00:01:53]} Ne5 {[%emt 00:04:29]} 0-1

[Event "NJSK 2022 Meisjes C"]
[Site "Almelo, Netherlands"]
[Date "2022.05.02"]
[Round "2.3"]
[White "Knobbe, Elise"]
[Black "Van Apeldoorn, Vera"]
[Result "0-1"]
[TimeControl "90min/40moves + 30min + 30sec/move"]
[WhiteElo "1553"]
[BlackElo "1022"]

1. c4 {[%clk 01:30:56]} {[%emt 00:00:04]} e5 {[%clk 01:30:49]} {[%emt
00:00:11]} 2. Nc3 {[%clk 01:31:20]} {[%emt 00:00:07]} Nf6 {[%clk 01:31:08]}
{[%emt 00:00:10]} 3. g3 {[%clk 01:31:41]} {[%emt 00:00:08]} Bb4 {[%clk
01:31:20]} {[%emt 00:00:19]} 4. Bg2 {[%clk 01:31:38]} {[%emt 00:00:33]} O-O
{[%clk 01:31:30]} {[%emt 00:00:20]} 5. e4 {[%clk 01:30:42]} {[%emt 00:01:26]}
Nc6 {[%clk 01:30:59]} {[%emt 00:01:01]} 6. Nge2 {[%clk 01:29:59]} {[%emt
00:01:13]} d6 {[%clk 01:28:46]} {[%emt 00:02:44]} 7. O-O {[%clk 01:28:47]}
{[%emt 00:01:42]} Bd7 {[%clk 01:26:35]} {[%emt 00:02:41]} 8. Nd5 {[%clk
01:23:11]} {[%emt 00:06:05]} Nxd5 {[%clk 01:23:52]} {[%emt 00:03:14]} 9. cxd5
{[%clk 01:23:25]} {[%emt 00:00:17]} Ne7 {[%clk 01:24:07]} {[%emt 00:00:14]} 10.
a3 {[%clk 01:19:42]} {[%emt 00:04:13]} Ba5 {[%clk 01:23:04]} {[%emt 00:01:33]}
11. b4 {[%clk 01:19:56]} {[%emt 00:00:17]} Bb6 {[%clk 01:23:24]} {[%emt
00:00:09]} 12. Bb2 {[%clk 01:19:10]} {[%emt 00:01:16]} f5 {[%clk 01:21:43]}
{[%emt 00:02:11]} 13. d3 {[%clk 01:16:36]} {[%emt 00:03:04]} Qc8 {[%clk
01:19:32]} {[%emt 00:02:42]} 14. Rc1 {[%clk 01:11:57]} {[%emt 00:05:08]} fxe4
{[%clk 01:18:44]} {[%emt 00:01:18]} 15. dxe4 {[%clk 01:10:50]} {[%emt
00:01:36]} Bh3 {[%clk 01:18:22]} {[%emt 00:00:52]} 16. Qc2 {[%clk 01:08:09]}
{[%emt 00:03:09]} Bxg2 {[%clk 01:18:15]} {[%emt 00:00:38]} 17. Kxg2 {[%clk
01:08:28]} {[%emt 00:00:11]} c6 {[%clk 01:17:58]} {[%emt 00:00:49]} 18. dxc6
{[%clk 01:05:42]} {[%emt 00:03:15]} Nxc6 {[%clk 01:17:45]} {[%emt 00:00:43]} 19.
Qb3+ {[%clk 01:04:11]} {[%emt 00:01:56]} Kh8 {[%clk 01:16:45]} {[%emt
00:01:35]} 20. Qd3 {[%clk 00:59:08]} {[%emt 00:05:30]} Qe6 {[%clk 01:15:04]}
{[%emt 00:02:15]} 21. Nc3 {[%clk 00:56:59]} {[%emt 00:02:38]} Rf6 {[%clk
01:13:07]} {[%emt 00:02:26]} 22. Nd5 {[%clk 00:56:02]} {[%emt 00:01:27]} Rh6
{[%clk 01:12:43]} {[%emt 00:00:54]} 23. h4 {[%clk 00:53:53]} {[%emt 00:02:39]}
Qg6 {[%clk 01:11:22]} {[%emt 00:01:50]} 24. Rh1 {[%clk 00:51:58]} {[%emt
00:02:21]} Bd8 {[%clk 01:10:43]} {[%emt 00:01:04]} 25. Kf1 {[%clk 00:50:17]}
{[%emt 00:02:22]} Qf7 {[%clk 01:08:44]} {[%emt 00:02:28]} 26. Ne3 {[%clk
00:46:55]} {[%emt 00:03:53]} Bb6 {[%clk 01:07:25]} {[%emt 00:01:48]} 27. Rc2
{[%clk 00:45:41]} {[%emt 00:01:44]} Rf6 {[%clk 01:05:45]} {[%emt 00:02:10]} 28.
Rh2 {[%clk 00:42:09]} {[%emt 00:04:01]} Rf3 {[%clk 01:03:52]} {[%emt 00:02:25]}
29. Kg1 {[%clk 00:37:46]} {[%emt 00:04:52]} Rf8 {[%clk 00:56:32]} {[%emt
00:07:52]} 30. Qd2 {[%clk 00:31:59]} {[%emt 00:06:15]} Bxe3 {[%clk 00:55:20]}
{[%emt 00:01:42]} 31. fxe3 {[%clk 00:31:16]} {[%emt 00:01:14]} Rf1+ {[%clk
00:52:28]} {[%emt 00:03:22]} 32. Kg2 {[%clk 00:31:33]} {[%emt 00:00:13]} Rg1+
{[%clk 00:52:27]} {[%emt 00:00:30]} 33. Kh3 {[%clk 00:31:03]} {[%emt 00:01:01]}
Qe6+ {[%clk 00:52:51]} {[%emt 00:00:06]} 34. g4 {[%clk 00:31:17]} {[%emt
00:00:16]} Rf3# {[%clk 00:52:24]} {[%emt 00:00:25]} 0-1

[Event "NJSK 2022 Meisjes C"]
[Site "Almelo, Netherlands"]
[Date "2022.05.02"]
[Round "2.4"]
[White "Feng, Elysia"]
[Black "Verbunt, Lisa"]
[Result "1-0"]
[TimeControl "90min/40moves + 30min + 30sec/move"]
[WhiteElo "1641"]
[BlackElo "807"]

1. e4 {[%clk 01:30:58]} {[%emt 00:00:02]} e6 {[%clk 01:30:55]} {[%emt
00:00:05]} 2. d4 {[%clk 01:31:24]} {[%emt 00:00:04]} d5 {[%clk 01:31:11]}
{[%emt 00:00:14]} 3. e5 {[%clk 01:31:49]} {[%emt 00:00:04]} c5 {[%clk
01:31:38]} {[%emt 00:00:03]} 4. c3 {[%clk 01:32:16]} {[%emt 00:00:03]} Nc6
{[%clk 01:31:47]} {[%emt 00:00:21]} 5. Nf3 {[%clk 01:32:42]} {[%emt 00:00:04]}
Qb6 {[%clk 01:32:06]} {[%emt 00:00:10]} 6. Bd3 {[%clk 01:33:07]} {[%emt
00:00:06]} cxd4 {[%clk 01:32:18]} {[%emt 00:00:19]} 7. cxd4 {[%clk 01:33:28]}
{[%emt 00:00:09]} Bd7 {[%clk 01:32:42]} {[%emt 00:00:06]} 8. O-O {[%clk
01:33:49]} {[%emt 00:00:08]} Nxd4 {[%clk 01:32:56]} {[%emt 00:00:16]} 9. Nxd4
{[%clk 01:34:14]} {[%emt 00:00:05]} Qxd4 {[%clk 01:33:18]} {[%emt 00:00:08]} 10.
Nc3 {[%clk 01:34:38]} {[%emt 00:00:07]} Ne7 {[%clk 01:33:22]} {[%emt 00:00:25]}
11. Nb5 {[%clk 01:34:39]} {[%emt 00:00:29]} Qb6 {[%clk 01:32:58]} {[%emt
00:00:53]} 12. Be3 {[%clk 01:34:42]} {[%emt 00:00:28]} Qd8 {[%clk 01:32:41]}
{[%emt 00:00:47]} 13. Nd6# {[%emt 00:00:32]} 1-0

[Event "NJSK 2022 Meisjes C"]
[Site "Almelo, Netherlands"]
[Date "2022.05.02"]
[Round "2.5"]
[White "Roebers, Bregje"]
[Black "Liu, Chia-Yun"]
[Result "0-1"]
[TimeControl "90min/40moves + 30min + 30sec/move"]
[WhiteElo "1214"]
[BlackElo "1148"]

1. e4 {[%clk 01:30:58]} {[%emt 00:00:02]} e5 {[%clk 01:30:55]} {[%emt
00:00:06]} 2. Nf3 {[%clk 01:31:18]} {[%emt 00:00:09]} Nc6 {[%clk 01:31:17]}
{[%emt 00:00:08]} 3. d4 {[%clk 01:31:40]} {[%emt 00:00:08]} exd4 {[%clk
01:31:26]} {[%emt 00:00:21]} 4. Nxd4 {[%clk 01:31:57]} {[%emt 00:00:12]} Bc5
{[%clk 01:31:31]} {[%emt 00:00:25]} 5. Be3 {[%clk 01:32:19]} {[%emt 00:00:08]}
Qf6 {[%clk 01:31:31]} {[%emt 00:00:29]} 6. c3 {[%clk 01:32:03]} {[%emt
00:00:47]} Nge7 {[%clk 01:30:19]} {[%emt 00:01:42]} 7. Be2 {[%clk 01:31:33]}
{[%emt 00:01:00]} O-O {[%clk 01:29:07]} {[%emt 00:01:42]} 8. Nxc6 {[%clk
01:30:13]} {[%emt 00:01:50]} Qxc6 {[%clk 01:26:01]} {[%emt 00:03:36]} 9. Bxc5
{[%clk 01:30:31]} {[%emt 00:00:12]} Qxc5 {[%clk 01:26:04]} {[%emt 00:00:28]} 10.
O-O {[%clk 01:30:05]} {[%emt 00:00:55]} d6 {[%clk 01:24:09]} {[%emt 00:02:25]}
11. Nd2 {[%clk 01:28:28]} {[%emt 00:02:07]} f5 {[%clk 01:16:10]} {[%emt
00:08:28]} 12. Bc4+ {[%clk 01:22:33]} {[%emt 00:06:26]} Kh8 {[%clk 01:14:11]}
{[%emt 00:02:28]} 13. Bb3 {[%clk 01:19:42]} {[%emt 00:03:22]} f4 {[%clk
01:09:20]} {[%emt 00:05:21]} 14. Nf3 {[%clk 01:15:52]} {[%emt 00:04:20]} Ng6
{[%clk 01:05:42]} {[%emt 00:04:08]} 15. Qd5 {[%clk 01:11:28]} {[%emt 00:04:54]}
Qxd5 {[%clk 01:03:34]} {[%emt 00:02:38]} 16. Bxd5 {[%clk 01:11:23]} {[%emt
00:00:35]} c6 {[%clk 01:02:26]} {[%emt 00:01:38]} 17. Bb3 {[%clk 01:10:37]}
{[%emt 00:01:16]} Ne5 {[%clk 01:01:34]} {[%emt 00:01:21]} 18. Nxe5 {[%clk
01:09:41]} {[%emt 00:01:26]} dxe5 {[%clk 01:01:38]} {[%emt 00:00:26]} 19. Rad1
{[%clk 01:08:55]} {[%emt 00:01:16]} Bg4 {[%clk 00:59:48]} {[%emt 00:02:20]} 20.
f3 {[%clk 01:08:15]} {[%emt 00:01:11]} Bh5 {[%clk 00:59:10]} {[%emt 00:01:07]}
21. Rd7 {[%clk 01:07:06]} {[%emt 00:01:40]} b6 {[%clk 00:57:32]} {[%emt
00:02:08]} 22. Rfd1 {[%clk 01:05:18]} {[%emt 00:02:18]} a5 {[%clk 00:53:58]}
{[%emt 00:04:04]} 23. a3 {[%clk 01:03:48]} {[%emt 00:02:01]} h6 {[%clk
00:50:50]} {[%emt 00:03:38]} 24. Re7 {[%clk 01:02:16]} {[%emt 00:02:02]} Rfe8
{[%clk 00:47:39]} {[%emt 00:03:40]} 25. Rxe8+ {[%clk 01:02:27]} {[%emt
00:00:19]} Rxe8 {[%clk 00:47:01]} {[%emt 00:01:08]} 26. Kf2 {[%clk 01:01:49]}
{[%emt 00:01:08]} Re7 {[%clk 00:46:25]} {[%emt 00:01:05]} 27. Rd6 {[%clk
01:01:23]} {[%emt 00:00:57]} Be8 {[%clk 00:45:07]} {[%emt 00:01:47]} 28. Re6
{[%clk 01:00:43]} {[%emt 00:01:11]} Rxe6 {[%clk 00:44:43]} {[%emt 00:00:55]} 29.
Bxe6 {[%clk 01:01:07]} {[%emt 00:00:05]} Kh7 {[%clk 00:44:21]} {[%emt
00:00:52]} 30. Bc4 {[%clk 01:00:38]} {[%emt 00:00:58]} Kg6 {[%clk 00:43:54]}
{[%emt 00:00:58]} 31. b4 {[%clk 00:59:58]} {[%emt 00:01:10]} a4 {[%clk
00:40:49]} {[%emt 00:03:35]} 32. Bf1 {[%clk 00:59:47]} {[%emt 00:00:41]} b5
{[%clk 00:40:36]} {[%emt 00:00:43]} 33. g3 {[%clk 00:57:09]} {[%emt 00:03:08]}
Kf6 {[%clk 00:38:46]} {[%emt 00:02:19]} 34. gxf4 {[%clk 00:56:15]} {[%emt
00:01:24]} exf4 {[%clk 00:38:59]} {[%emt 00:00:18]} 35. Ke2 {[%clk 00:56:10]}
{[%emt 00:00:36]} Ke5 {[%clk 00:38:44]} {[%emt 00:00:44]} 36. Bh3 {[%clk
00:55:49]} {[%emt 00:00:51]} g5 {[%clk 00:38:09]} {[%emt 00:01:06]} 37. Bf5
{[%clk 00:55:52]} {[%emt 00:00:26]} h5 {[%clk 00:37:21]} {[%emt 00:01:18]} 38.
h3 {[%clk 00:55:52]} {[%emt 00:00:30]} Kd6 {[%clk 00:35:36]} {[%emt 00:02:15]}
39. Kd3 {[%clk 00:55:14]} {[%emt 00:01:08]} Bd7 {[%clk 00:34:14]} {[%emt
00:01:52]} 40. e5+ {[%clk 00:52:36]} {[%emt 00:03:08]} Ke7 {[%clk 00:34:21]}
{[%emt 00:00:23]} 41. Bxd7 {[%clk 00:52:32]} {[%emt 00:00:34]} Kxd7 {[%clk
00:34:48]} {[%emt 00:00:02]} 42. Kd4 {[%clk 00:52:20]} {[%emt 00:00:43]} h4
{[%clk 00:33:50]} {[%emt 00:01:28]} 43. Ke4 {[%clk 00:51:27]} {[%emt 00:01:23]}
Ke6 {[%clk 00:33:59]} {[%emt 00:00:21]} 44. Kd4 {[%clk 00:48:27]} {[%emt
00:03:30]} Kf5 {[%clk 00:34:09]} {[%emt 00:00:20]} 45. Kd3 {[%clk 00:48:15]}
{[%emt 00:00:42]} Kxe5 {[%clk 00:34:30]} {[%emt 00:00:08]} 46. Ke2 {[%clk
00:48:25]} {[%emt 00:00:21]} Kd5 {[%clk 00:34:24]} {[%emt 00:00:37]} 47. Kd3
{[%clk 00:48:38]} {[%emt 00:00:17]} c5 {[%clk 00:33:52]} {[%emt 00:01:01]} 48.
bxc5 {[%clk 00:48:15]} {[%emt 00:00:53]} Kxc5 {[%clk 00:34:12]} {[%emt
00:00:10]} 49. Kd2 {[%clk 00:48:22]} {[%emt 00:00:22]} Kc4 {[%clk 00:34:02]}
{[%emt 00:00:41]} 50. Kc2 {[%clk 00:48:28]} {[%emt 00:00:24]} g4 {[%clk
00:29:37]} {[%emt 00:04:55]} 51. fxg4 {[%clk 00:48:52]} {[%emt 00:00:05]} f3
{[%clk 00:29:56]} {[%emt 00:00:11]} 52. Kd2 {[%clk 00:49:03]} {[%emt 00:00:20]}
f2 {[%clk 00:30:21]} {[%emt 00:00:06]} 53. Ke2 {[%clk 00:49:25]} {[%emt
00:00:07]} f1=Q+ {[%clk 00:30:39]} {[%emt 00:00:11]} 54. Kxf1 {[%clk 00:49:45]}
{[%emt 00:00:10]} Kxc3 {[%clk 00:31:02]} {[%emt 00:00:08]} 55. g5 {[%clk
00:49:50]} {[%emt 00:00:25]} b4 {[%clk 00:30:54]} {[%emt 00:00:38]} 56. g6
{[%clk 00:50:09]} {[%emt 00:00:11]} bxa3 {[%clk 00:30:56]} {[%emt 00:00:29]} 57.
g7 {[%clk 00:50:15]} {[%emt 00:00:24]} a2 {[%clk 00:31:22]} {[%emt 00:00:04]}
58. g8=Q {[%clk 00:50:20]} {[%emt 00:00:14]} a1=Q+ {[%emt 00:00:13]} 59. Ke2
{[%clk 00:50:35]} {[%emt 00:00:14]} Qb2+ {[%clk 00:31:52]} {[%emt 00:00:28]} 60.
Ke3 {[%clk 00:50:52]} {[%emt 00:00:13]} Qd2 {[%clk 00:31:48]} {[%emt 00:00:34]}
61. Kf3 {[%clk 00:51:03]} {[%emt 00:00:19]} Qd3 {[%clk 00:31:25]} {[%emt
00:00:52]} 62. Kf4 {[%clk 00:51:20]} {[%emt 00:00:13]} Qg3+ {[%clk 00:31:42]}
{[%emt 00:00:14]} 63. Qxg3+ {[%clk 00:51:16]} {[%emt 00:00:34]} hxg3 {[%clk
00:32:04]} {[%emt 00:00:07]} 64. Kxg3 {[%clk 00:51:35]} {[%emt 00:00:12]} a3
{[%clk 00:32:29]} {[%emt 00:00:05]} 65. h4 {[%clk 00:51:56]} {[%emt 00:00:08]}
a2 {[%clk 00:32:55]} {[%emt 00:00:05]} 66. h5 {[%clk 00:52:14]} {[%emt
00:00:12]} a1=Q {[%clk 00:33:19]} {[%emt 00:00:05]} 67. Kg4 {[%clk 00:52:30]}
{[%emt 00:00:16]} Qg1+ {[%clk 00:33:15]} {[%emt 00:00:33]} 68. Kf5 {[%clk
00:52:43]} {[%emt 00:00:17]} Qf2+ {[%clk 00:33:19]} {[%emt 00:00:26]} 69. Kg6
{[%clk 00:53:04]} {[%emt 00:00:09]} Qg3+ {[%clk 00:33:39]} {[%emt 00:00:09]} 70.
Kf5 {[%clk 00:53:24]} {[%emt 00:00:10]} Qh4 {[%clk 00:33:43]} {[%emt 00:00:26]}
71. Kg6 {[%clk 00:53:44]} {[%emt 00:00:10]} Qg4+ {[%clk 00:34:01]} {[%emt
00:00:12]} 72. Kh6 {[%clk 00:54:07]} {[%emt 00:00:07]} Kd4 {[%clk 00:34:17]}
{[%emt 00:00:14]} 0-1